[Event "Juniorallsvenskan 2019, Division 1 and 2"]
[Site "Molnlycke kulturhus, Biblioteksgatan 2, Molnlycke, Sweden"]
[Date "2019.11.23"]
[Round "2.9"]
[White "Sorensen, Hampus"]
[Black "Nilsson, Joakim"]
[Result "1-0"]
[TimeControl "90 minutes + 30 seconds per move from move one"]
[WhiteTitle "FM"]
[BlackTitle "FM"]
[WhiteFideId "8703884"]
[BlackFideId "1723383"]
[WhiteElo "2365"]
[BlackElo "2288"]

1. d4 {[%clk 01:30:49]} {[%emt 00:00:10]} d5 {[%clk 01:30:54]} {[%emt
00:00:06]} 2. c4 {[%clk 01:30:43]} {[%emt 00:00:36]} e6 {[%clk 01:31:18]}
{[%emt 00:00:07]} 3. Nf3 {[%clk 01:30:02]} {[%emt 00:01:11]} Nf6 {[%clk
01:31:42]} {[%emt 00:00:07]} 4. Bg5 {[%clk 01:30:01]} {[%emt 00:00:30]} Nbd7
{[%clk 01:31:56]} {[%emt 00:00:15]} 5. e3 {[%clk 01:28:48]} {[%emt 00:01:44]}
c6 {[%clk 01:30:41]} {[%emt 00:01:45]} 6. Qc2 {[%clk 01:28:25]} {[%emt
00:00:52]} Be7 {[%clk 01:29:43]} {[%emt 00:01:28]} 7. Nc3 {[%clk 01:27:44]}
{[%emt 00:01:12]} O-O {[%clk 01:27:13]} {[%emt 00:03:00]} 8. Rd1 {[%clk
01:22:37]} {[%emt 00:05:37]} b6 {[%clk 01:20:35]} {[%emt 00:07:08]} 9. Bd3
{[%clk 01:19:43]} {[%emt 00:03:23]} Bb7 {[%clk 01:15:14]} {[%emt 00:05:51]} 10.
O-O {[%clk 01:18:06]} {[%emt 00:02:07]} h6 {[%clk 01:13:40]} {[%emt 00:02:04]}
11. Bf4 {[%clk 01:15:57]} {[%emt 00:02:39]} Rc8 {[%clk 00:59:52]} {[%emt
00:14:18]} 12. Qb1 {[%clk 01:06:31]} {[%emt 00:09:56]} Re8 {[%clk 00:46:22]}
{[%emt 00:14:00]} 13. Ne5 {[%clk 00:59:24]} {[%emt 00:07:37]} Nxe5 {[%clk
00:43:46]} {[%emt 00:03:06]} 14. dxe5 {[%clk 00:52:12]} {[%emt 00:07:42]} Nd7
{[%clk 00:43:47]} {[%emt 00:00:29]} 15. cxd5 {[%clk 00:51:57]} {[%emt
00:00:46]} cxd5 {[%clk 00:43:26]} {[%emt 00:00:50]} 16. e4 {[%clk 00:49:25]}
{[%emt 00:03:02]} Nc5 {[%clk 00:29:46]} {[%emt 00:14:10]} 17. exd5 {[%clk
00:48:58]} {[%emt 00:00:58]} exd5 {[%clk 00:29:53]} {[%emt 00:00:23]} 18. Bf5
{[%clk 00:43:50]} {[%emt 00:05:38]} d4 {[%clk 00:27:54]} {[%emt 00:02:28]} 19.
Be3 {[%clk 00:35:09]} {[%emt 00:09:11]} Qc7 {[%clk 00:20:30]} {[%emt 00:07:53]}
20. Bxd4 {[%clk 00:34:08]} {[%emt 00:01:31]} Rcd8 {[%clk 00:19:38]} {[%emt
00:01:21]} 21. e6 {[%clk 00:24:53]} {[%emt 00:09:47]} Nxe6 {[%clk 00:18:39]}
{[%emt 00:01:29]} 22. Bxe6 {[%clk 00:24:58]} {[%emt 00:00:25]} fxe6 {[%clk
00:18:57]} {[%emt 00:00:11]} 23. Qg6 {[%clk 00:25:01]} {[%emt 00:00:27]} Bc5
{[%clk 00:13:50]} {[%emt 00:05:38]} 24. Nb5 {[%clk 00:18:27]} {[%emt 00:07:04]}
Qe7 {[%clk 00:14:05]} {[%emt 00:00:14]} 25. Bxc5 {[%clk 00:18:44]} {[%emt
00:00:14]} bxc5 {[%clk 00:13:26]} {[%emt 00:01:09]} 26. Nd6 {[%clk 00:18:35]}
{[%emt 00:00:38]} Rf8 {[%clk 00:10:23]} {[%emt 00:03:33]} 27. Nxb7 {[%clk
00:18:57]} {[%emt 00:00:09]} Qxb7 {[%clk 00:10:20]} {[%emt 00:00:33]} 28. Qxe6+
{[%clk 00:19:17]} {[%emt 00:00:10]} Kh8 {[%clk 00:10:30]} {[%emt 00:00:20]} 29.
Rxd8 {[%clk 00:18:22]} {[%emt 00:01:25]} Rxd8 {[%clk 00:10:46]} {[%emt
00:00:14]} 30. Qe2 {[%clk 00:18:27]} {[%emt 00:00:25]} Rd4 {[%clk 00:10:52]}
{[%emt 00:00:22]} 31. h3 {[%clk 00:14:04]} {[%emt 00:04:55]} Qd5 {[%clk
00:10:39]} {[%emt 00:00:43]} 32. Qa6 {[%clk 00:13:05]} {[%emt 00:01:29]} Rd1
{[%clk 00:08:42]} {[%emt 00:02:26]} 33. Rxd1 {[%clk 00:12:15]} {[%emt
00:01:20]} Qxd1+ {[%clk 00:09:05]} {[%emt 00:00:07]} 34. Kh2 {[%clk 00:12:21]}
{[%emt 00:00:24]} Qd4 {[%clk 00:04:58]} {[%emt 00:04:36]} 35. Qc8+ {[%clk
00:11:54]} {[%emt 00:00:58]} Kh7 {[%clk 00:05:24]} {[%emt 00:00:03]} 36. Qf5+
{[%clk 00:12:20]} {[%emt 00:00:04]} Kh8 {[%clk 00:05:18]} {[%emt 00:00:36]} 37.
b3 {[%clk 00:12:08]} {[%emt 00:00:43]} a5 {[%clk 00:05:25]} {[%emt 00:00:23]}
38. f4 {[%clk 00:09:32]} {[%emt 00:03:06]} Kg8 {[%clk 00:04:24]} {[%emt
00:01:31]} 39. Qe6+ {[%clk 00:09:52]} {[%emt 00:00:10]} Kh7 {[%clk 00:04:29]}
{[%emt 00:00:24]} 40. Qc4 {[%clk 00:10:01]} {[%emt 00:00:22]} Qe3 {[%clk
00:04:14]} {[%emt 00:00:45]} 41. Qc2+ {[%clk 00:07:54]} {[%emt 00:02:38]} Kh8
{[%clk 00:04:16]} {[%emt 00:00:28]} 42. Qf5 {[%clk 00:08:11]} {[%emt 00:00:13]}
Qd4 {[%clk 00:04:34]} {[%emt 00:00:11]} 43. Qe5 {[%clk 00:08:01]} {[%emt
00:00:41]} Qf2 {[%clk 00:04:05]} {[%emt 00:00:58]} 44. a4 {[%clk 00:06:29]}
{[%emt 00:02:03]} Kh7 {[%clk 00:03:38]} {[%emt 00:00:56]} 45. Qe4+ {[%clk
00:06:49]} {[%emt 00:00:11]} Kh8 {[%clk 00:03:46]} {[%emt 00:00:21]} 46. f5
{[%clk 00:05:39]} {[%emt 00:01:40]} Kg8 {[%clk 00:03:40]} {[%emt 00:00:36]} 47.
h4 {[%clk 00:05:00]} {[%emt 00:01:10]} Kf7 {[%clk 00:02:43]} {[%emt 00:01:27]}
48. Kh3 {[%clk 00:04:50]} {[%emt 00:00:40]} Kf8 {[%clk 00:02:23]} {[%emt
00:00:50]} 49. Kg4 {[%clk 00:02:29]} {[%emt 00:02:52]} Kf7 {[%clk 00:02:41]}
{[%emt 00:00:10]} 50. Qd5+ {[%clk 00:02:27]} {[%emt 00:00:34]} Kf8 {[%clk
00:03:00]} {[%emt 00:00:10]} 51. Kh5 {[%clk 00:01:17]} {[%emt 00:01:41]} Qe2+
{[%clk 00:02:48]} {[%emt 00:00:42]} 52. Kg6 {[%clk 00:01:26]} {[%emt 00:00:20]}
Qg4+ {[%clk 00:01:31]} {[%emt 00:01:46]} 53. Kh7 {[%clk 00:01:50]} {[%emt
00:00:06]} Qd4 {[%clk 00:01:23]} {[%emt 00:00:39]} 54. Qg8+ {[%clk 00:01:45]}
{[%emt 00:00:34]} Ke7 {[%clk 00:01:41]} {[%emt 00:00:13]} 55. Qxg7+ {[%clk
00:02:11]} {[%emt 00:00:04]} Kd6 {[%clk 00:01:17]} {[%emt 00:00:54]} 56. f6
{[%clk 00:01:55]} {[%emt 00:00:46]} Qe4+ {[%clk 00:01:02]} {[%emt 00:00:45]} 57.
Kg8 {[%clk 00:02:11]} {[%emt 00:00:14]} Qe6+ {[%clk 00:01:18]} {[%emt
00:00:13]} 58. f7 {[%clk 00:02:17]} {[%emt 00:00:24]} Ke7 {[%clk 00:01:40]}
{[%emt 00:00:08]} 59. Qf8+ {[%clk 00:02:29]} {[%emt 00:00:18]} Kd7 {[%clk
00:01:50]} {[%emt 00:00:20]} 60. Qe8+ {[%clk 00:02:39]} {[%emt 00:00:20]} 1-0

[Event "Juniorallsvenskan 2019, Division 1 and 2"]
[Site "Molnlycke kulturhus, Biblioteksgatan 2, Molnlycke, Sweden"]
[Date "2019.11.23"]
[Round "2.10"]
[White "Sundin, Emanuel"]
[Black "Berglind, Axel"]
[Result "0-1"]
[TimeControl "90 minutes + 30 seconds per move from move one"]
[WhiteFideId "1719173"]
[BlackFideId "1720228"]
[WhiteElo "2093"]
[BlackElo "2062"]

1. e4 {[%clk 01:30:13]} {[%emt 00:00:47]} c5 {[%clk 01:30:54]} {[%emt
00:00:07]} 2. Nf3 {[%clk 01:28:39]} {[%emt 00:02:04]} d6 {[%clk 01:31:17]}
{[%emt 00:00:06]} 3. d4 {[%clk 01:27:37]} {[%emt 00:01:32]} cxd4 {[%clk
01:31:42]} {[%emt 00:00:05]} 4. Nxd4 {[%clk 01:28:02]} {[%emt 00:00:04]} Nf6
{[%clk 01:32:08]} {[%emt 00:00:05]} 5. Nc3 {[%clk 01:28:15]} {[%emt 00:00:17]}
a6 {[%clk 01:32:31]} {[%emt 00:00:07]} 6. f3 {[%clk 01:25:27]} {[%emt
00:03:18]} e6 {[%clk 01:30:48]} {[%emt 00:02:13]} 7. Be3 {[%clk 01:25:05]}
{[%emt 00:00:51]} Nbd7 {[%clk 01:27:37]} {[%emt 00:03:42]} 8. g4 {[%clk
01:19:40]} {[%emt 00:05:55]} h6 {[%clk 01:27:58]} {[%emt 00:00:08]} 9. Qd2
{[%clk 01:19:46]} {[%emt 00:00:23]} b5 {[%clk 01:27:40]} {[%emt 00:00:48]} 10.
O-O-O {[%clk 01:18:02]} {[%emt 00:02:14]} Bb7 {[%clk 01:27:59]} {[%emt
00:00:11]} 11. h4 {[%clk 01:16:15]} {[%emt 00:02:18]} b4 {[%clk 01:28:15]}
{[%emt 00:00:14]} 12. Na4 {[%clk 01:15:25]} {[%emt 00:01:20]} d5 {[%clk
01:27:35]} {[%emt 00:01:10]} 13. g5 {[%clk 00:59:04]} {[%emt 00:16:51]} hxg5
{[%clk 01:27:02]} {[%emt 00:01:03]} 14. Bxg5 {[%clk 00:59:08]} {[%emt
00:00:25]} dxe4 {[%clk 01:23:47]} {[%emt 00:03:45]} 15. Bc4 {[%clk 00:52:17]}
{[%emt 00:07:21]} Ne5 {[%clk 01:15:54]} {[%emt 00:08:23]} 16. Qe2 {[%clk
00:30:02]} {[%emt 00:22:45]} Qa5 {[%clk 01:13:20]} {[%emt 00:03:03]} 17. Bb3
{[%clk 00:29:19]} {[%emt 00:01:14]} exf3 {[%clk 01:13:01]} {[%emt 00:00:50]} 18.
Qe3 {[%clk 00:26:01]} {[%emt 00:03:47]} Neg4 {[%clk 00:50:35]} {[%emt
00:22:56]} 19. Qd2 {[%clk 00:23:03]} {[%emt 00:03:28]} Rd8 {[%clk 00:42:09]}
{[%emt 00:08:56]} 20. Nb6 {[%clk 00:17:06]} {[%emt 00:06:27]} Bc5 {[%clk
00:34:43]} {[%emt 00:07:57]} 21. Ba4+ {[%clk 00:15:17]} {[%emt 00:02:19]} Ke7
{[%clk 00:34:58]} {[%emt 00:00:15]} 22. Qf4 {[%clk 00:09:00]} {[%emt 00:06:47]}
Qxb6 {[%clk 00:33:12]} {[%emt 00:02:15]} 23. Bxf6+ {[%clk 00:02:57]} {[%emt
00:06:33]} gxf6 {[%clk 00:32:08]} {[%emt 00:01:34]} 0-1

[Event "Juniorallsvenskan 2019, Division 1 and 2"]
[Site "Molnlycke kulturhus, Biblioteksgatan 2, Molnlycke, Sweden"]
[Date "2019.11.23"]
[Round "2.11"]
[White "Crevatin, Leo"]
[Black "Mitra, Akash"]
[Result "1-0"]
[TimeControl "90 minutes + 30 seconds per move from move one"]
[WhiteTitle "CM"]
[WhiteFideId "1726307"]
[BlackFideId "1726714"]
[WhiteElo "2231"]
[BlackElo "1975"]

1. d4 {[%clk 01:30:40]} {[%emt 00:00:09]} Nf6 {[%clk 01:30:42]} {[%emt
00:00:20]} 2. c4 {[%clk 01:30:40]} {[%emt 00:00:30]} g6 {[%clk 01:30:55]}
{[%emt 00:00:17]} 3. Nc3 {[%clk 01:31:07]} {[%emt 00:00:04]} Bg7 {[%clk
01:31:19]} {[%emt 00:00:06]} 4. Nf3 {[%clk 01:31:32]} {[%emt 00:00:05]} O-O
{[%clk 01:31:39]} {[%emt 00:00:10]} 5. Bg5 {[%clk 01:31:56]} {[%emt 00:00:05]}
d6 {[%clk 01:30:38]} {[%emt 00:01:31]} 6. e3 {[%clk 01:31:49]} {[%emt
00:00:37]} Nbd7 {[%clk 01:26:44]} {[%emt 00:04:25]} 7. Be2 {[%clk 01:29:03]}
{[%emt 00:03:16]} c6 {[%clk 01:24:21]} {[%emt 00:02:53]} 8. h3 {[%clk
01:26:52]} {[%emt 00:02:40]} e5 {[%clk 01:23:29]} {[%emt 00:01:22]} 9. O-O
{[%clk 01:24:34]} {[%emt 00:02:47]} Re8 {[%clk 01:19:15]} {[%emt 00:04:44]} 10.
Qc2 {[%clk 01:23:17]} {[%emt 00:01:47]} h6 {[%clk 01:08:02]} {[%emt 00:11:44]}
11. Bh4 {[%clk 01:23:03]} {[%emt 00:00:44]} g5 {[%clk 01:07:33]} {[%emt
00:01:00]} 12. Bg3 {[%clk 01:23:26]} {[%emt 00:00:06]} e4 {[%clk 01:07:40]}
{[%emt 00:00:24]} 13. Nd2 {[%clk 01:23:31]} {[%emt 00:00:25]} Qe7 {[%clk
01:07:29]} {[%emt 00:00:41]} 14. b4 {[%clk 01:19:23]} {[%emt 00:04:38]} Nf8
{[%clk 01:05:58]} {[%emt 00:02:00]} 15. c5 {[%clk 01:17:39]} {[%emt 00:02:14]}
d5 {[%clk 01:03:24]} {[%emt 00:03:05]} 16. b5 {[%clk 01:17:48]} {[%emt
00:00:20]} Ng6 {[%clk 00:52:53]} {[%emt 00:11:02]} 17. Nb3 {[%clk 01:16:26]}
{[%emt 00:01:51]} g4 {[%clk 00:46:53]} {[%emt 00:06:30]} 18. hxg4 {[%clk
01:15:22]} {[%emt 00:01:34]} Nxg4 {[%clk 00:42:22]} {[%emt 00:05:01]} 19. bxc6
{[%clk 01:14:25]} {[%emt 00:01:28]} bxc6 {[%clk 00:39:24]} {[%emt 00:03:28]} 20.
Na5 {[%clk 01:14:51]} {[%emt 00:00:03]} Qg5 {[%clk 00:37:43]} {[%emt 00:02:11]}
21. Qd2 {[%clk 01:12:29]} {[%emt 00:02:52]} Bd7 {[%clk 00:34:26]} {[%emt
00:03:48]} 22. Rab1 {[%clk 01:11:55]} {[%emt 00:01:04]} Nh4 {[%clk 00:28:38]}
{[%emt 00:06:17]} 23. Rb7 {[%clk 01:09:27]} {[%emt 00:02:58]} Rad8 {[%clk
00:25:33]} {[%emt 00:03:35]} 24. Rxa7 {[%clk 01:04:57]} {[%emt 00:05:00]} Re6
{[%clk 00:24:53]} {[%emt 00:01:10]} 25. Nb7 {[%clk 01:02:02]} {[%emt 00:03:25]}
Rde8 {[%clk 00:17:03]} {[%emt 00:08:21]} 26. Nd6 {[%clk 01:00:34]} {[%emt
00:01:57]} R8e7 {[%clk 00:17:04]} {[%emt 00:00:29]} 27. Bxg4 {[%clk 00:51:46]}
{[%emt 00:09:18]} Qxg4 {[%clk 00:12:43]} {[%emt 00:04:51]} 28. Bxh4 {[%clk
00:52:09]} {[%emt 00:00:07]} Rg6 {[%clk 00:12:39]} {[%emt 00:00:34]} 29. Bg3
{[%clk 00:52:12]} {[%emt 00:00:26]} h5 {[%clk 00:12:36]} {[%emt 00:00:34]} 30.
Ne2 {[%clk 00:45:29]} {[%emt 00:07:13]} h4 {[%clk 00:12:34]} {[%emt 00:00:33]}
31. Nf4 {[%clk 00:44:41]} {[%emt 00:01:17]} hxg3 {[%clk 00:06:10]} {[%emt
00:06:54]} 32. Nxg6 {[%clk 00:44:55]} {[%emt 00:00:16]} fxg6 {[%clk 00:03:59]}
{[%emt 00:02:41]} 33. fxg3 {[%clk 00:44:36]} {[%emt 00:00:48]} Bh6 {[%clk
00:02:27]} {[%emt 00:02:03]} 34. Qf2 {[%clk 00:43:50]} {[%emt 00:01:15]} Qg5
{[%clk 00:01:32]} {[%emt 00:01:25]} 35. Ra3 {[%clk 00:40:25]} {[%emt 00:03:55]}
Be6 {[%clk 00:00:42]} {[%emt 00:01:20]} 36. Qf4 {[%clk 00:39:25]} {[%emt
00:01:28]} Rc7 {[%clk 00:00:31]} {[%emt 00:00:44]} 37. Qf6 {[%clk 00:38:46]}
{[%emt 00:01:08]} Qxf6 {[%clk 00:00:32]} {[%emt 00:00:31]} 38. Rxf6 {[%clk
00:39:09]} {[%emt 00:00:06]} Bf5 {[%clk 00:00:31]} {[%emt 00:00:31]} 39. Nxf5
{[%clk 00:39:27]} {[%emt 00:00:11]} 1-0

[Event "Juniorallsvenskan 2019, Division 1 and 2"]
[Site "Molnlycke kulturhus, Biblioteksgatan 2, Molnlycke, Sweden"]
[Date "2019.11.23"]
[Round "2.12"]
[White "Hall, Alexander"]
[Black "Narva, David"]
[Result "1/2-1/2"]
[TimeControl "90 minutes + 30 seconds per move from move one"]
[WhiteFideId "1738933"]
[BlackFideId "24128856"]
[WhiteElo "1887"]
[BlackElo "1979"]

1. d4 {[%clk 01:30:59]} {[%emt 00:00:01]} d6 {[%clk 01:30:52]} {[%emt
00:00:09]} 2. Nf3 {[%clk 01:31:01]} {[%emt 00:00:27]} g6 {[%clk 01:31:11]}
{[%emt 00:00:11]} 3. c4 {[%clk 01:31:13]} {[%emt 00:00:18]} Bg7 {[%clk
01:31:28]} {[%emt 00:00:13]} 4. Nc3 {[%clk 01:31:33]} {[%emt 00:00:10]} Nf6
{[%clk 01:30:38]} {[%emt 00:01:20]} 5. Bg5 {[%clk 01:30:47]} {[%emt 00:01:16]}
Nbd7 {[%clk 01:30:26]} {[%emt 00:00:42]} 6. e3 {[%clk 01:31:10]} {[%emt
00:00:07]} h6 {[%clk 01:28:53]} {[%emt 00:02:03]} 7. Bh4 {[%clk 01:31:36]}
{[%emt 00:00:04]} g5 {[%clk 01:27:54]} {[%emt 00:01:30]} 8. Bg3 {[%clk
01:32:02]} {[%emt 00:00:04]} Nh5 {[%clk 01:23:32]} {[%emt 00:04:51]} 9. Bd3
{[%clk 01:23:47]} {[%emt 00:08:45]} e6 {[%clk 01:11:17]} {[%emt 00:12:46]} 10.
Nd2 {[%clk 01:22:34]} {[%emt 00:01:43]} Nxg3 {[%clk 01:11:17]} {[%emt
00:00:30]} 11. hxg3 {[%clk 01:23:02]} {[%emt 00:00:02]} e5 {[%clk 01:10:09]}
{[%emt 00:01:38]} 12. d5 {[%clk 01:19:23]} {[%emt 00:04:08]} Nc5 {[%clk
01:04:54]} {[%emt 00:05:45]} 13. Bc2 {[%clk 01:19:29]} {[%emt 00:00:24]} f5
{[%clk 00:57:25]} {[%emt 00:08:00]} 14. Qh5+ {[%clk 01:18:55]} {[%emt
00:01:03]} Kf8 {[%clk 00:57:53]} {[%emt 00:00:02]} 15. g4 {[%clk 01:07:10]}
{[%emt 00:12:15]} e4 {[%clk 00:56:27]} {[%emt 00:01:56]} 16. gxf5 {[%clk
00:57:49]} {[%emt 00:09:51]} Bxc3 {[%clk 00:50:30]} {[%emt 00:06:27]} 17. bxc3
{[%clk 00:58:03]} {[%emt 00:00:17]} Bxf5 {[%clk 00:42:56]} {[%emt 00:08:04]} 18.
g4 {[%clk 00:53:45]} {[%emt 00:04:48]} Bd7 {[%clk 00:42:11]} {[%emt 00:01:15]}
19. Nxe4 {[%clk 00:52:17]} {[%emt 00:01:59]} Nxe4 {[%clk 00:42:34]} {[%emt
00:00:07]} 20. Bxe4 {[%clk 00:52:36]} {[%emt 00:00:10]} Qf6 {[%clk 00:42:25]}
{[%emt 00:00:39]} 21. Kd2 {[%clk 00:47:25]} {[%emt 00:05:42]} Kg7 {[%clk
00:40:01]} {[%emt 00:02:55]} 22. Raf1 {[%clk 00:42:45]} {[%emt 00:05:09]} Be8
{[%clk 00:34:26]} {[%emt 00:06:05]} 23. Qh3 {[%clk 00:43:02]} {[%emt 00:00:12]}
Bg6 {[%clk 00:31:40]} {[%emt 00:03:17]} 24. Qf3 {[%clk 00:39:53]} {[%emt
00:03:37]} Bxe4 {[%clk 00:28:12]} {[%emt 00:03:59]} 25. Qxe4 {[%clk 00:40:20]}
{[%emt 00:00:04]} Rhe8 {[%clk 00:24:58]} {[%emt 00:03:43]} 26. Qd4 {[%clk
00:39:22]} {[%emt 00:01:27]} Qe5 {[%clk 00:23:13]} {[%emt 00:02:16]} 27. Kd3
{[%clk 00:32:53]} {[%emt 00:06:59]} Re7 {[%clk 00:22:06]} {[%emt 00:01:37]} 28.
Qxe5+ {[%clk 00:32:46]} {[%emt 00:00:37]} Rxe5 {[%clk 00:22:29]} {[%emt
00:00:07]} 29. Rb1 {[%clk 00:31:35]} {[%emt 00:01:39]} b6 {[%clk 00:22:11]}
{[%emt 00:00:49]} 30. Rh2 {[%clk 00:25:20]} {[%emt 00:06:45]} Rf8 {[%clk
00:21:22]} {[%emt 00:01:19]} 31. Rf1 {[%clk 00:21:29]} {[%emt 00:04:20]} Rf3
{[%clk 00:18:41]} {[%emt 00:03:12]} 32. a4 {[%clk 00:20:31]} {[%emt 00:01:27]}
Rexe3+ {[%clk 00:18:39]} {[%emt 00:00:33]} 33. fxe3 {[%clk 00:20:47]} {[%emt
00:00:14]} Rxf1 {[%clk 00:19:03]} {[%emt 00:00:06]} 34. a5 {[%clk 00:17:13]}
{[%emt 00:04:04]} Rd1+ {[%clk 00:13:28]} {[%emt 00:06:04]} 35. Ke4 {[%clk
00:17:27]} {[%emt 00:00:16]} Kg6 {[%clk 00:10:07]} {[%emt 00:03:52]} 36. axb6
{[%clk 00:17:49]} {[%emt 00:00:08]} axb6 {[%clk 00:10:32]} {[%emt 00:00:04]} 37.
Ra2 {[%clk 00:13:37]} {[%emt 00:04:42]} Rf1 {[%clk 00:10:38]} {[%emt 00:00:24]}
38. Ra7 {[%clk 00:10:52]} {[%emt 00:03:16]} Rf7 {[%clk 00:11:00]} {[%emt
00:00:07]} 39. Kd4 {[%emt 00:06:36]} 1/2-1/2

[Event "Juniorallsvenskan 2019, Division 1 and 2"]
[Site "Molnlycke kulturhus, Biblioteksgatan 2, Molnlycke, Sweden"]
[Date "2019.11.23"]
[Round "2.13"]
[White "Ivarsson, Sebastian"]
[Black "Wernberg, Hugo"]
[Result "1/2-1/2"]
[TimeControl "90 minutes + 30 seconds per move from move one"]
[WhiteFideId "1738593"]
[BlackFideId "1737511"]
[WhiteElo "1969"]
[BlackElo "2020"]

1. d4 {[%clk 01:30:36]} {[%emt 00:00:23]} d5 {[%clk 01:30:59]} {[%emt
00:00:02]} 2. c4 {[%clk 01:30:58]} {[%emt 00:00:08]} c6 {[%clk 01:31:28]}
{[%emt 00:00:02]} 3. Nf3 {[%clk 01:31:11]} {[%emt 00:00:16]} Nf6 {[%clk
01:31:55]} {[%emt 00:00:03]} 4. Nc3 {[%clk 01:31:23]} {[%emt 00:00:17]} e6
{[%clk 01:32:15]} {[%emt 00:00:12]} 5. Bg5 {[%clk 01:30:19]} {[%emt 00:01:32]}
h6 {[%clk 01:32:26]} {[%emt 00:00:20]} 6. Bh4 {[%clk 01:30:26]} {[%emt
00:00:23]} Nbd7 {[%clk 01:32:44]} {[%emt 00:00:12]} 7. e3 {[%clk 01:29:23]}
{[%emt 00:01:33]} Be7 {[%clk 01:33:02]} {[%emt 00:00:11]} 8. Rc1 {[%clk
01:27:12]} {[%emt 00:02:42]} Nh5 {[%clk 01:30:10]} {[%emt 00:03:22]} 9. Bxe7
{[%clk 01:21:20]} {[%emt 00:06:23]} Qxe7 {[%clk 01:30:36]} {[%emt 00:00:03]} 10.
Bd3 {[%clk 01:21:04]} {[%emt 00:00:45]} Nhf6 {[%clk 01:30:14]} {[%emt
00:00:52]} 11. O-O {[%clk 01:19:21]} {[%emt 00:02:14]} O-O {[%clk 01:29:32]}
{[%emt 00:01:12]} 12. Qe2 {[%clk 01:18:11]} {[%emt 00:01:40]} e5 {[%clk
01:23:28]} {[%emt 00:06:35]} 13. dxe5 {[%clk 01:07:53]} {[%emt 00:10:47]} Nxe5
{[%clk 01:23:45]} {[%emt 00:00:13]} 14. Nxe5 {[%clk 01:07:31]} {[%emt
00:00:52]} Qxe5 {[%clk 01:24:07]} {[%emt 00:00:08]} 15. cxd5 {[%clk 01:07:11]}
{[%emt 00:00:50]} Nxd5 {[%clk 01:17:50]} {[%emt 00:06:47]} 16. Nxd5 {[%clk
01:02:03]} {[%emt 00:05:37]} Qxd5 {[%clk 01:17:58]} {[%emt 00:00:22]} 17. Bc4
{[%clk 01:01:03]} {[%emt 00:01:31]} Qe5 {[%clk 01:17:53]} {[%emt 00:00:36]} 18.
Rfd1 {[%clk 00:57:09]} {[%emt 00:04:23]} Be6 {[%clk 01:17:15]} {[%emt
00:01:08]} 19. Qd2 {[%clk 00:54:42]} {[%emt 00:02:55]} Qf6 {[%clk 01:07:54]}
{[%emt 00:09:53]} 20. Bxe6 {[%clk 00:51:42]} {[%emt 00:03:30]} Qxe6 {[%clk
01:07:13]} {[%emt 00:01:10]} 21. b3 {[%clk 00:39:41]} {[%emt 00:12:32]} Qe7
{[%clk 01:04:33]} {[%emt 00:03:10]} 22. Qd7 {[%clk 00:38:53]} {[%emt 00:01:18]}
Rfe8 {[%clk 01:04:40]} {[%emt 00:00:23]} 23. Rc4 {[%clk 00:35:06]} {[%emt
00:04:16]} Rad8 {[%clk 01:01:45]} {[%emt 00:03:26]} 24. Qg4 {[%clk 00:34:49]}
{[%emt 00:00:45]} Qg5 {[%clk 00:48:17]} {[%emt 00:14:00]} 25. Qe2 {[%clk
00:33:28]} {[%emt 00:01:50]} Rxd1+ {[%clk 00:47:03]} {[%emt 00:01:45]} 26. Qxd1
{[%clk 00:33:50]} {[%emt 00:00:08]} Rd8 {[%clk 00:47:22]} {[%emt 00:00:11]} 27.
Rd4 {[%clk 00:23:18]} {[%emt 00:11:02]} Rxd4 {[%clk 00:47:38]} {[%emt
00:00:14]} 28. Qxd4 {[%clk 00:23:36]} {[%emt 00:00:11]} Qa5 {[%clk 00:47:55]}
{[%emt 00:00:15]} 29. Qa1 {[%clk 00:24:02]} {[%emt 00:00:04]} Qd2 {[%clk
00:45:23]} {[%emt 00:03:01]} 30. g3 {[%clk 00:24:05]} {[%emt 00:00:26]} c5
{[%clk 00:39:45]} {[%emt 00:06:09]} 31. Qe5 {[%clk 00:12:54]} {[%emt 00:11:42]}
Qxa2 {[%clk 00:38:49]} {[%emt 00:01:25]} 32. Qe8+ {[%clk 00:13:21]} {[%emt
00:00:03]} Kh7 {[%clk 00:39:06]} {[%emt 00:00:12]} 33. Qxf7 {[%clk 00:13:49]}
{[%emt 00:00:03]} Qb1+ {[%clk 00:39:00]} {[%emt 00:00:36]} 34. Kg2 {[%clk
00:14:15]} {[%emt 00:00:04]} b6 {[%clk 00:37:05]} {[%emt 00:02:25]} 35. Qc4
{[%clk 00:10:36]} {[%emt 00:04:09]} Qg6 {[%clk 00:35:21]} {[%emt 00:02:14]} 36.
e4 {[%clk 00:10:27]} {[%emt 00:00:38]} Qd6 {[%clk 00:31:41]} {[%emt 00:04:10]}
37. Qf7 {[%clk 00:10:24]} {[%emt 00:00:34]} a5 {[%clk 00:30:18]} {[%emt
00:01:54]} 38. f4 {[%clk 00:09:50]} {[%emt 00:01:04]} Qf6 {[%clk 00:19:43]}
{[%emt 00:11:04]} 39. Qd5 {[%clk 00:09:58]} {[%emt 00:00:23]} Qd4 {[%clk
00:18:18]} {[%emt 00:01:56]} 40. Qf5+ {[%clk 00:09:33]} {[%emt 00:00:54]} Kh8
{[%clk 00:17:56]} {[%emt 00:00:51]} 41. Qf8+ {[%clk 00:08:58]} {[%emt
00:01:06]} Kh7 {[%clk 00:18:08]} {[%emt 00:00:18]} 42. Qf5+ {[%clk 00:09:26]}
{[%emt 00:00:03]} Kh8 {[%clk 00:18:30]} {[%emt 00:00:07]} 43. e5 {[%clk
00:08:35]} {[%emt 00:01:22]} Qd5+ {[%clk 00:17:56]} {[%emt 00:01:04]} 44. Kh3
{[%clk 00:08:49]} {[%emt 00:00:16]} b5 {[%clk 00:16:58]} {[%emt 00:01:27]} 45.
Qf8+ {[%clk 00:07:58]} {[%emt 00:01:21]} Kh7 {[%clk 00:17:02]} {[%emt
00:00:27]} 46. Qd6 {[%clk 00:06:59]} {[%emt 00:01:29]} Qf3 {[%clk 00:12:33]}
{[%emt 00:04:59]} 47. Qxc5 {[%clk 00:05:10]} {[%emt 00:02:18]} Qh5+ {[%clk
00:12:54]} {[%emt 00:00:09]} 48. Kg2 {[%clk 00:05:36]} {[%emt 00:00:04]} Qe2+
{[%clk 00:13:17]} {[%emt 00:00:08]} 49. Kh3 {[%clk 00:06:00]} {[%emt 00:00:06]}
Qh5+ {[%clk 00:13:36]} {[%emt 00:00:10]} 1/2-1/2